fUSD/lending_fUSD_20240517
["ID","MTS","AMOUNT","RATE_DAILY","PERIOD"]
[327241367,1715915432813,-1277.46,8.782e-05,2]
[327241368,1715915432825,-5903.81675019,8.782e-05,2]
[327241369,1715915432835,-2496.41747337,8.783e-05,2]
[327241370,1715915432844,-656.27275998,9.039e-05,2]
[327241371,1715915432853,-150.0,9.04e-05,2]
[327241372,1715915432862,-2777.68,9.041e-05,2]
[327241373,1715915432871,-250.0,0.00010781,2]
[327241374,1715915432881,-200.0,0.00010797,2]
[327241375,1715915432891,-2000.54,0.000108,2]
[327241376,1715915432901,-23890.0,0.0001081,2]
[327241377,1715915432911,-171.18,0.00010839,2]
[327241378,1715915432921,-1300.4,0.00010845,15]
[327241379,1715915432931,-250.0,0.00010857,2]
[327241380,1715915432939,-150.99,0.00010859,2]
[327241381,1715915432949,-1000.0,0.00010861,2]
[327241382,1715915432958,-430.96,0.00010942,2]
[327241383,1715915432968,-1009.39,0.00010959,2]
[327241384,1715915432978,-150.0,0.00010959,2]
[327241385,1715915432988,-164.9,0.00010959,2]
[327241386,1715915432997,-331.53,0.00011032,2]
[327241387,1715915433006,-331.53,0.00011062,2]
[327241389,1715915433016,-331.53,0.00011092,2]
[327241391,1715915433025,-331.53,0.00011122,2]
[327241393,1715915433033,-331.53,0.00011152,2]
[327241395,1715915433042,-331.53,0.00011183,2]
[327241397,1715915433057,-331.53,0.00011213,2]
[327241399,1715915433066,-166.113571,0.00011233,2]
[327241401,1715915433075,-276.855951,0.00011233,2]
[327241402,1715915433084,-331.53,0.00011243,2]
[327241403,1715915433094,-331.53,0.00011273,2]
[327241404,1715915433103,-331.53,0.00011304,2]
[327241405,1715915433112,-2777.68,0.00011305,2]
[327241406,1715915433122,-331.53,0.00011334,2]
[327241407,1715915433132,-177.22,0.00011344,2]
[327241408,1715915433141,-331.53,0.00011364,2]
[327241409,1715915433151,-166.113571,0.00011374,2]
[327241410,1715915433370,-331.53,0.00011394,2]
[327241411,1715915433381,-331.53,0.00011425,2]
[327241412,1715915433391,-331.53,0.00011455,2]
[327241413,1715915433401,-176.53,0.00011474,2]
[327241414,1715915433410,-331.53,0.00011485,2]
[327241415,1715915433419,-166.113571,0.00011514,2]
[327241416,1715915433429,-331.53,0.00011515,2]
[327241417,1715915433438,-331.53,0.00011546,2]
[327241418,1715915433446,-331.53,0.00011576,2]
[327241419,1715915433455,-331.53,0.00011606,2]
[327241420,1715915433465,-166.113571,0.00011654,2]
[327241421,1715915433475,-166.113571,0.00011795,2]
[327241422,1715915433485,-457.57537053,0.000118,2]
[327241423,1715915433494,-223.28,0.00011834,2]
[327241424,1715915433505,-200.0,0.000119,4]
[327241425,1715915433514,-8429.4871,0.00012,2]
[327241426,1715915433524,-5000.0,0.00012,2]
[327241427,1715915433534,-19626.96507151,0.00012,2]
[327241428,1715915433545,-500.0,0.00012,4]
[327241429,1715915433554,-1737.5,0.00012055,2]
[327241430,1715915433565,-265.5899,0.000121,2]
[327241431,1715915433575,-700.0,0.000121,4]
[327241432,1715915433584,-3705.171,0.00012107,2]
[327241433,1715915433593,-180.0,0.00012175,2]
[327241434,1715915433603,-1760.6501,0.000122,2]
[327241435,1715915433614,-1000.0,0.000122,4]
[327241436,1715915433624,-1000.0,0.00012219,2]
[327241437,1715915433634,-210.5486,0.0001228,2]
[327241438,1715915433643,-1250.0,0.000123,2]
[327241439,1715915433653,-1200.0,0.000123,4]
[327241440,1715915433661,-1000.0,0.00012364,2]
[327241441,1715915433671,-393.7958,0.00012364,2]
[327241442,1715915433682,-601.3996,0.0001238,2]
[327241443,1715915433692,-782.7825,0.0001238,2]
[327241444,1715915433702,-200.0,0.000124,4]
[327241445,1715915433712,-10934.65564137,0.000124,2]
[327241446,1715915433723,-1000.0,0.000124,2]
[327241447,1715915433734,-3704.927,0.0001245,2]
[327241448,1715915433745,-515162.34558207,0.0001246,2]
[327241449,1715915433754,-945.28670799,0.00012464,2]
[327241450,1715915433765,-2639.04472,0.00012464,2]
[327241451,1715915433774,-151.50364027,0.00012464,2]
[327241452,1715915433783,-3730.248,0.00012464,2]
[327241453,1715915433792,-950.9918,0.00012479,2]
[327241454,1715915433801,-500.0,0.00012479,2]
[327241455,1715915433810,-500.0,0.00012479,2]
[327241456,1715915433819,-481.57686641,0.00012479,2]
[327241457,1715915433828,-270.67436643,0.00012479,2]
[327241458,1715915433837,-883.6685,0.0001248,2]
[327241459,1715915433846,-1000.0,0.0001248,2]
[327241460,1715915433855,-7500.0,0.0001248,2]
[327241461,1715915433865,-500.0,0.00012499,2]
[327241462,1715915433874,-500.0,0.00012499,2]
[327241463,1715915433884,-500.0,0.00012499,2]
[327241464,1715915433893,-500.0,0.00012499,2]
[327241465,1715915433902,-252.32718806,0.000125,2]
[327241466,1715915433911,-1000.12345678,0.000125,3]
[327241467,1715915433921,-1000.12345678,0.000125,4]
[327241468,1715915433932,-295.80600126,0.000125,5]
[327241469,1715915433941,-200.0,0.000125,4]
[327241470,1715915433950,-155.0,0.000125,2]
[327241471,1715915433962,-159.44,0.0001257,2]
[327241472,1715915433973,-500.0,0.00012579,2]
[327241473,1715915433983,-500.0,0.00012579,2]
[327241474,1715915433993,-182.57983208,0.00012579,2]
[327241475,1715915434002,-524.49213208,0.00012579,2]
[327241476,1715915434011,-510.52349088,0.00012579,2]
[327241477,1715915434020,-520.23964725,0.00012579,2]
[327241478,1715915434030,-173.51074075,0.00012579,2]
[327241479,1715915434039,-500.0,0.00012579,2]
[327241480,1715915434052,-567.12202613,0.00012579,2]
[327241481,1715915434061,-500.0,0.00012579,2]
[327241482,1715915434070,-500.0,0.00012579,2]
[327241483,1715915434079,-626.76543211,0.00012579,2]
[327241484,1715915434089,-449.48617446,0.00012579,2]
[327241485,1715915434098,-500.0,0.00012579,2]
[327241486,1715915434107,-500.0,0.00012579,2]
[327241487,1715915434116,-515.81858061,0.00012579,2]
[327241488,1715915434125,-513.69452976,0.00012579,2]
[327241489,1715915434135,-510.60485844,0.00012579,2]
[327241490,1715915434144,-500.0,0.00012579,2]
[327241491,1715915434154,-540.378475,0.00012579,2]
[327241492,1715915434163,-500.0,0.00012579,2]
[327241493,1715915434172,-515.1447026,0.00012579,2]
[327241494,1715915434184,-500.0,0.00012579,2]
[327241495,1715915434193,-500.0,0.00012579,2]
[327241496,1715915434206,-500.0,0.00012579,2]
[327241497,1715915434215,-500.0,0.00012579,2]
[327241498,1715915434224,-500.0,0.00012579,2]
[327241499,1715915434233,-500.0,0.00012579,2]
[327241500,1715915434242,-510.37773245,0.00012579,2]
[327241501,1715915434251,-500.0,0.00012579,2]
[327241502,1715915434260,-516.82370058,0.00012579,2]
[327241503,1715915434269,-500.0,0.00012579,2]
[327241504,1715915434279,-525.42979264,0.00012579,2]
[327241505,1715915434288,-500.0,0.00012579,2]
[327241506,1715915434297,-500.0,0.00012579,2]
[327241507,1715915434306,-500.0,0.00012579,2]
[327241508,1715915434316,-500.0,0.00012579,2]
[327241509,1715915434325,-500.0,0.00012579,2]
[327241510,1715915434335,-518.28820696,0.00012579,2]
[327241511,1715915434345,-519.19812983,0.00012579,2]
[327241512,1715915434355,-500.0,0.00012579,2]
[327241513,1715915434364,-512.8403555,0.00012579,2]
[327241514,1715915434374,-500.0,0.00012579,2]
[327241515,1715915434383,-500.0,0.00012579,2]
[327241516,1715915434393,-811.67,0.00012579,2]
[327241517,1715915434402,-500.0,0.00012579,2]
[327241518,1715915434411,-500.0,0.00012579,2]
[327241519,1715915434420,-500.0,0.00012579,2]
[327241520,1715915434431,-545.85434741,0.00012579,2]
[327241521,1715915434440,-579.68329281,0.00012579,2]
[327241522,1715915434449,-500.0,0.00012579,2]
[327241523,1715915434459,-500.0,0.00012579,2]
[327241524,1715915434468,-500.0,0.00012579,2]
[327241525,1715915434477,-500.0,0.00012579,2]
[327241526,1715915434486,-500.0,0.00012579,2]
[327241527,1715915434495,-500.0,0.00012579,2]
[327241528,1715915434504,-527.19559731,0.00012579,2]
[327241529,1715915434513,-500.0,0.00012579,2]
[327241530,1715915434523,-500.0,0.00012579,2]
[327241531,1715915434531,-630.92954828,0.00012579,2]
[327241532,1715915434541,-500.0,0.00012579,2]
[327241533,1715915434550,-500.0,0.00012579,2]
[327241534,1715915434560,-500.0,0.00012579,2]
[327241535,1715915434569,-515.39373773,0.00012579,2]
[327241536,1715915434578,-522.09787111,0.00012579,2]
[327241537,1715915434588,-500.0,0.00012579,2]
[327241538,1715915434597,-500.0,0.00012579,2]
[327241539,1715915434606,-166.90315673,0.00012579,2]
[327241540,1715915434615,-500.0,0.00012579,2]
[327241541,1715915434624,-500.0,0.00012579,2]
[327241542,1715915434633,-361.83080505,0.00012579,2]
[327241543,1715915434643,-500.0,0.00012579,2]
[327241544,1715915434652,-500.0,0.00012579,2]
[327241545,1715915434661,-467.85586655,0.00012579,2]
[327241546,1715915434670,-500.0,0.00012579,2]
[327241547,1715915434681,-500.0,0.00012579,2]
[327241548,1715915434690,-90642.77174392,0.0001258,2]
[327241565,1715915438942,-500.0,0.00012579,2]
[327241567,1715915438951,-212.08271485,0.0001258,2]
[327241571,1715915440791,-261.355,0.00010959,2]
[327241572,1715915440803,-436.295,0.00010959,2]
[327241573,1715915440812,-500.0,0.00012579,2]
[327241574,1715915440822,-3741.27768814,0.0001258,2]
[327241575,1715915440834,-329.9999994,0.0001258,2]
[327241576,1715915440846,-354.16960267,0.0001258,2]
[327241577,1715915440857,-250.13277065,0.0001258,2]
[327241578,1715915441029,-7809.40363195,0.0001258,2]
[327241579,1715915441225,-593.71008989,0.0001258,2]
[327241637,1715915443655,-500.0,0.00012579,2]
[327241638,1715915443668,-554.89208745,0.00012579,2]
[327241639,1715915443679,-18472.41336566,0.0001258,2]
[327241640,1715915443691,-30666.52508687,0.0001258,2]
[327241641,1715915443700,-200.0,0.000126,4]
[327241642,1715915443710,-4895.0,0.0001265,2]
[327241643,1715915443719,-150.0,0.00012679,2]
[327241644,1715915443730,-150.072,0.00012679,2]
[327241645,1715915443739,-150.09,0.00012679,2]
[327241646,1715915443748,-150.0,0.00012679,2]
[327241647,1715915443757,-799.254,0.00012679,2]
[327241648,1715915443765,-1225.0,0.00012679,2]
[327241649,1715915443775,-1791.0,0.00012679,2]
[327241650,1715915443785,-544.0,0.00012679,2]
[327241651,1715915443794,-1261.0,0.00012679,2]
[327241652,1715915443803,-298.226,0.00012679,2]
[327241653,1715915443812,-2351.0,0.00012679,2]
[327241654,1715915443821,-217.223,0.00012679,2]
[327241655,1715915443831,-5914.0,0.00012679,2]
[327241656,1715915443840,-37858.0,0.00012679,2]
[327241657,1715915443849,-3029.383,0.00012679,2]
[327241658,1715915443858,-289.0,0.00012679,2]
[327241659,1715915443867,-426.0,0.00012679,2]
[327241660,1715915443876,-170.0,0.00012679,2]
[327241661,1715915443886,-1053.0,0.00012679,2]
[327241662,1715915443895,-200.0,0.000127,4]
[327241663,1715915443906,-327.17118966,0.000127,2]
[327241664,1715915443915,-327.17118964,0.00012733,2]
[327241666,1715915443924,-166.90315672,0.0001274,2]
[327241667,1715915443935,-12651.55997179,0.0001275,2]
[327241668,1715915443944,-327.17118964,0.00012767,2]
[327241669,1715915443952,-612.0,0.000128,4]
[327241670,1715915443961,-327.17118964,0.000128,2]
[327241671,1715915443971,-981.0,0.00012804,2]
[327241672,1715915443982,-817.0,0.00012804,2]
[327241673,1715915443991,-327.17118964,0.00012833,2]
[327241674,1715915444001,-327.17118964,0.00012867,2]
[327241675,1715915444012,-295.11881963,0.00012869,2]
[327241676,1715915444023,-957.63883027,0.0001287,2]
[327241677,1715915444032,-360.34000003,0.00012876,2]
[327241678,1715915444042,-500.0,0.00012876,2]
[327241679,1715915444053,-500.0,0.00012876,2]
[327241680,1715915444064,-500.0,0.00012876,2]
[327241681,1715915444074,-500.0,0.00012876,2]
[327241682,1715915444083,-500.0,0.00012876,2]
[327241683,1715915444094,-500.0,0.00012876,2]
[327241684,1715915444104,-500.0,0.00012876,2]
[327241685,1715915444114,-500.0,0.00012876,2]
[327241686,1715915444123,-500.0,0.00012876,2]
[327241687,1715915444132,-500.0,0.00012876,2]
[327241688,1715915444142,-500.0,0.00012876,2]
[327241689,1715915444152,-500.0,0.00012876,2]
[327241690,1715915444163,-598.59808876,0.00012876,2]
[327241691,1715915444173,-500.0,0.00012876,2]
[327241692,1715915444183,-500.0,0.00012876,2]
[327241693,1715915444192,-1000.0,0.00012877,2]
[327241694,1715915444202,-1000.0,0.00012877,2]
[327241695,1715915444211,-1000.0,0.00012877,2]
[327241696,1715915444220,-1000.0,0.00012877,2]
[327241697,1715915444230,-1000.0,0.00012877,2]
[327241698,1715915444239,-1000.0,0.00012877,2]
[327241699,1715915444248,-1000.0,0.00012877,2]
[327241700,1715915444258,-1000.0,0.00012877,2]
[327241701,1715915444267,-1000.0,0.00012877,2]
[327241702,1715915444275,-1000.0,0.00012877,2]
[327241703,1715915444285,-1000.0,0.00012877,2]
[327241704,1715915444295,-1000.0,0.00012877,2]
[327241705,1715915444304,-1000.0,0.00012877,2]
[327241706,1715915444314,-1000.0,0.00012877,2]
[327241707,1715915444323,-1000.0,0.00012877,2]
[327241708,1715915444332,-1000.0,0.00012877,2]
[327241709,1715915444343,-1000.0,0.00012877,2]
[327241710,1715915444352,-1000.0,0.00012877,2]
[327241711,1715915444362,-1000.0,0.00012877,2]
[327241712,1715915444371,-1000.0,0.00012877,2]
[327241713,1715915444381,-1000.0,0.00012877,2]
[327241714,1715915444391,-1000.0,0.00012877,2]
[327241715,1715915444401,-1000.0,0.00012877,2]
[327241716,1715915444410,-1000.0,0.00012877,2]
[327241717,1715915444419,-1000.0,0.00012877,2]
[327241718,1715915444428,-1000.0,0.00012877,2]
[327241719,1715915444438,-1000.0,0.00012877,2]
[327241720,1715915444447,-1000.0,0.00012877,2]
[327241721,1715915444457,-1000.0,0.00012877,2]
[327241722,1715915444466,-1000.0,0.00012877,2]
[327241723,1715915444475,-1000.0,0.00012877,2]
[327241724,1715915444484,-1000.0,0.00012877,2]
[327241725,1715915444493,-1000.0,0.00012877,2]
[327241726,1715915444503,-1000.0,0.00012877,2]
[327241727,1715915444512,-1000.0,0.00012877,2]
[327241728,1715915444522,-1000.0,0.00012877,2]
[327241729,1715915444531,-1000.0,0.00012877,2]
[327241730,1715915444540,-1000.0,0.00012877,2]
[327241731,1715915444549,-1000.0,0.00012877,2]
[327241732,1715915444558,-1000.0,0.00012877,2]
[327241733,1715915444568,-1000.0,0.00012877,2]
[327241734,1715915444577,-1000.0,0.00012877,2]
[327241735,1715915444587,-1000.0,0.00012877,2]
[327241736,1715915444596,-1000.0,0.00012877,2]
[327241737,1715915444606,-1000.0,0.00012877,2]
[327241738,1715915444615,-1000.0,0.00012877,2]
[327241739,1715915444625,-1000.0,0.00012877,2]
[327241740,1715915444635,-1000.0,0.00012877,2]
[327241741,1715915444644,-1000.0,0.00012877,2]
[327241742,1715915444654,-1000.0,0.00012877,2]
[327241743,1715915444665,-1000.0,0.00012877,2]
[327241744,1715915444675,-1000.0,0.00012877,2]
[327241745,1715915444686,-1000.0,0.00012877,2]
[327241746,1715915444695,-1000.0,0.00012877,2]
[327241747,1715915444705,-1000.0,0.00012877,2]
[327241748,1715915444714,-1000.0,0.00012877,2]
[327241749,1715915444724,-1000.0,0.00012877,2]
[327241750,1715915444735,-1000.0,0.00012877,2]
[327241751,1715915444744,-1000.0,0.00012877,2]
[327241752,1715915444756,-1000.0,0.00012877,2]
[327241753,1715915444765,-1000.0,0.00012877,2]
[327241754,1715915444774,-1000.0,0.00012877,2]
[327241755,1715915444784,-1000.0,0.00012877,2]
[327241756,1715915444793,-1000.0,0.00012877,2]
[327241757,1715915444802,-1000.0,0.00012877,2]
[327241758,1715915444815,-1000.0,0.00012877,2]
[327241759,1715915444825,-1000.0,0.00012877,2]
[327241760,1715915444834,-1000.0,0.00012877,2]
[327241761,1715915444844,-1000.0,0.00012877,2]
[327241762,1715915444853,-1000.0,0.00012877,2]
[327241763,1715915444864,-1000.0,0.00012877,2]
[327241764,1715915444874,-1000.0,0.00012877,2]
[327241765,1715915444883,-1000.0,0.00012877,2]
[327241766,1715915444893,-1000.0,0.00012877,2]
[327241767,1715915444904,-1000.0,0.00012877,2]
[327241768,1715915444915,-1000.0,0.00012877,2]
[327241769,1715915444925,-1000.0,0.00012877,2]
[327241770,1715915444935,-1000.0,0.00012877,2]
[327241771,1715915444945,-1000.0,0.00012877,2]
[327241772,1715915444954,-1000.0,0.00012877,2]
[327241773,1715915444963,-1000.0,0.00012877,2]
[327241774,1715915444973,-1000.0,0.00012877,2]
[327241775,1715915444982,-1000.0,0.00012877,2]
[327241776,1715915444991,-1000.0,0.00012877,2]
[327241777,1715915445000,-1000.0,0.00012877,2]
[327241778,1715915445009,-1000.0,0.00012877,2]
[327241779,1715915445019,-1000.0,0.00012877,2]
[327241780,1715915445029,-1000.0,0.00012877,2]
[327241781,1715915445038,-1000.0,0.00012877,2]
[327241782,1715915445047,-1000.0,0.00012877,2]
[327241783,1715915445061,-1000.0,0.00012877,2]
[327241784,1715915445070,-1000.0,0.00012877,2]
[327241785,1715915445080,-1000.0,0.00012877,2]
[327241786,1715915445090,-1000.0,0.00012877,2]
[327241787,1715915445271,-1000.0,0.00012877,2]
[327241788,1715915445283,-1000.0,0.00012877,2]
[327241789,1715915445294,-1000.0,0.00012877,2]
[327241790,1715915445304,-1000.0,0.00012877,2]
[327241791,1715915445314,-1000.0,0.00012877,2]
[327241792,1715915445323,-1010.0,0.00012877,2]
[327241793,1715915445332,-393.97876918,0.0001289,2]
[327241794,1715915445343,-500.0,0.00012895,2]
[327241795,1715915445352,-1000.0,0.00012896,2]
[327241796,1715915445361,-200.0,0.00012896,2]
[327241797,1715915445371,-500.0,0.00012896,2]
[327241798,1715915445380,-500.0,0.00012896,2]
[327241799,1715915445389,-176.46053528,0.00012896,2]
[327241800,1715915445399,-177.39571863,0.00012896,2]
[327241801,1715915445408,-552.36245261,0.00012898,2]
[327241802,1715915445419,-500.0,0.00012898,2]
[327241803,1715915445429,-150.93000603,0.00012898,2]
[327241804,1715915445441,-515.12505004,0.00012898,2]
[327241805,1715915445450,-500.0,0.00012898,2]
[327241806,1715915445460,-408.60702937,0.00012898,2]
[327241807,1715915445470,-500.0,0.00012898,2]
[327241808,1715915445479,-500.0,0.00012898,2]
[327241809,1715915445490,-500.0,0.00012898,2]
[327241810,1715915445500,-500.0,0.00012898,2]
[327241811,1715915445509,-500.0,0.00012898,2]
[327241812,1715915445518,-366.19132267,0.00012898,2]
[327241813,1715915445528,-500.0,0.00012898,2]
[327241814,1715915445538,-198.05282439,0.00012898,2]
[327241815,1715915445547,-811.67,0.00012898,2]
[327241816,1715915445557,-500.0,0.00012898,2]
[327241817,1715915445566,-500.0,0.00012898,2]
[327241818,1715915445576,-500.0,0.00012898,2]
[327241819,1715915445585,-567.06156488,0.00012898,2]
[327241820,1715915445594,-570.82631075,0.00012898,2]
[327241821,1715915445603,-500.0,0.00012898,2]
[327241822,1715915445612,-266.36025752,0.00012898,2]
[327241823,1715915445621,-500.0,0.00012898,2]
[327241824,1715915445630,-428.0817082,0.00012898,2]
[327241825,1715915445639,-500.0,0.00012899,2]
[327241826,1715915445649,-500.0,0.00012899,2]
[327241827,1715915445659,-500.0,0.00012899,2]
[327241828,1715915445668,-500.0,0.00012899,2]
[327241829,1715915445677,-500.0,0.00012899,2]
[327241830,1715915445688,-500.0,0.00012899,2]
[327241831,1715915445697,-176.70423546,0.00012899,2]
[327241832,1715915445708,-500.0,0.00012899,2]
[327241833,1715915445716,-500.0,0.00012899,2]
[327241834,1715915445726,-272.94159408,0.00012899,2]
[327241835,1715915445735,-376.67190633,0.00012899,2]
[327241836,1715915445745,-500.0,0.00012899,2]
[327241837,1715915445754,-500.0,0.00012899,2]
[327241838,1715915445763,-547.50776281,0.00012899,2]
[327241839,1715915445774,-500.0,0.00012899,2]
[327241840,1715915445783,-500.0,0.00012899,2]
[327241841,1715915445792,-500.0,0.00012899,2]
[327241842,1715915445801,-811.67,0.00012899,2]
[327241843,1715915445810,-500.0,0.00012899,2]
[327241844,1715915445819,-500.0,0.00012899,2]
[327241845,1715915445828,-500.0,0.00012899,2]
[327241846,1715915445837,-500.0,0.00012899,2]
[327241847,1715915445847,-438.00209217,0.00012899,2]
[327241848,1715915445856,-500.0,0.00012899,2]
[327241849,1715915445865,-500.0,0.00012899,2]
[327241850,1715915445874,-500.0,0.00012899,2]
[327241851,1715915445883,-248.77542726,0.00012899,2]
[327241852,1715915445892,-500.0,0.00012899,2]
[327241853,1715915445901,-500.0,0.00012899,2]
[327241854,1715915445910,-500.0,0.00012899,2]
[327241855,1715915445919,-500.0,0.00012899,2]
[327241856,1715915445928,-500.0,0.00012899,2]
[327241857,1715915445937,-500.0,0.00012899,2]
[327241858,1715915445946,-559.50399193,0.00012899,2]
[327241859,1715915445956,-546.23446217,0.00012899,2]
[327241860,1715915445966,-575.85366283,0.00012899,2]
[327241861,1715915445976,-250000.0,0.000129,2]
[327241862,1715915445986,-1000.0,0.000129,2]
[327241863,1715915445996,-10000.0,0.000129,2]
[327241864,1715915446007,-177.39571862,0.000129,2]
[327241865,1715915446017,-861.90841677,0.000129,2]
[327241866,1715915446028,-861.90841671,0.000129,2]
[327241867,1715915446040,-861.90841671,0.000129,2]
[327241868,1715915446050,-861.90841671,0.000129,2]
[327241869,1715915446065,-861.90841671,0.000129,2]
[327241870,1715915446075,-861.90841671,0.000129,2]
[327241871,1715915446086,-861.90841671,0.000129,2]
[327241872,1715915446097,-861.90841671,0.000129,2]
[327241873,1715915446108,-369.48247772,0.000129,2]
[327241874,1715915446118,-166.90315672,0.000129,2]
[327241875,1715915446128,-327.17118964,0.000129,2]
[327241876,1715915446142,-329.6342481,0.000129,2]
[327241877,1715915446154,-500.0,0.0001292,2]
[327241878,1715915446163,-500.0,0.00012929,2]
[327241879,1715915446173,-981.0,0.00012936,2]
[327241880,1715915446184,-817.0,0.00012936,2]
[327241881,1715915446193,-500.0,0.00012937,2]
[327241882,1715915446202,-500.0,0.00012946,2]
[327241883,1715915446213,-500.0,0.00012955,2]
[327241884,1715915446223,-500.0,0.00012964,2]
[327241885,1715915446234,-500.0,0.00012973,2]
[327241886,1715915446243,-159.44,0.00012981,2]
[327241888,1715915446252,-500.0,0.00012981,2]
[327241889,1715915446263,-653.14759037,0.00012982,2]
[327241890,1715915446273,-393.97876918,0.0001299,2]
[327241891,1715915446282,-393.97876918,0.0001299,2]
[327241892,1715915446293,-500.0,0.0001299,2]
[327241893,1715915446303,-666.0,0.0001299,2]
[327241894,1715915446312,-3681.828,0.00012991,2]
[327241895,1715915446321,-16733.7777881,0.00012991,2]
[327241896,1715915446330,-13096.1569103,0.00012991,2]
[327241897,1715915446339,-9458.5360325,0.00012991,2]
[327241898,1715915446348,-5820.9151546,0.00012991,2]
[327241899,1715915446357,-2183.2942768,0.00012991,2]
[327241900,1715915446367,-3886.8367722,0.00012991,2]
[327241901,1715915446378,-3041.9087009,0.00012991,2]
[327241902,1715915446388,-2196.9806297,0.00012991,2]
[327241903,1715915446397,-1352.0525584,0.00012991,2]
[327241904,1715915446407,-507.1244872,0.00012991,2]
[327241905,1715915446416,-562.48394037,0.00012993,2]
[327241906,1715915446426,-599.03055594,0.00012993,2]
[327241907,1715915446436,-204.90781965,0.00012994,2]
[327241908,1715915446445,-155.06298123,0.00012994,2]
[327241909,1715915446455,-155.11670865,0.00012994,2]
[327241910,1715915446464,-155.19595138,0.00012994,2]
[327241911,1715915446473,-360.86581876,0.00012994,2]
[327241912,1715915446482,-327.15682677,0.00012994,2]
[327241913,1715915446491,-1000.0,0.00012994,2]
[327241914,1715915446500,-19648.26087687,0.00012994,2]
[327241915,1715915446509,-1481.27010667,0.00012994,2]
[327241916,1715915446518,-1275.82846304,0.00012994,2]
[327241917,1715915446527,-1896.75478172,0.00012994,2]
[327241918,1715915446537,-390.00235946,0.00012994,2]
[327241919,1715915446546,-155.50265727,0.00012994,2]
[327241920,1715915446555,-325.6664985,0.00012994,2]
[327241921,1715915446565,-155.21973461,0.00012994,2]
[327241922,1715915446574,-219.08838533,0.00012994,2]
[327241923,1715915446583,-201.3015598,0.00012994,2]
[327241924,1715915446592,-2007.30991729,0.00012994,2]
[327241925,1715915446602,-268.43453694,0.00012994,2]
[327241926,1715915446611,-237.29906159,0.00012994,2]
[327241927,1715915446621,-7554.20935527,0.00012994,2]
[327241928,1715915446630,-2346.87654378,0.00012994,2]
[327241929,1715915446639,-326.41824761,0.00012994,2]
[327241930,1715915446648,-155.97113422,0.00012994,2]
[327241931,1715915446657,-155.43945221,0.00012994,2]
[327241932,1715915446667,-307.91244568,0.00012994,2]
[327241933,1715915446676,-330.80129031,0.00012994,2]
[327241934,1715915446687,-178.34294471,0.00012994,2]
[327241935,1715915446696,-361.48242354,0.00012994,2]
[327241936,1715915446706,-318.15044545,0.00012994,2]
[327241937,1715915446715,-630.36689557,0.00012994,2]
[327241938,1715915446725,-156.33390832,0.00012994,2]
[327241939,1715915446735,-412.37081201,0.00012994,2]
[327241940,1715915446744,-159.77327759,0.00012994,2]
[327241941,1715915446752,-156.19413836,0.00012994,2]
[327241942,1715915446761,-163.89804786,0.00012994,2]
[327241943,1715915446770,-1255.19732972,0.00012994,2]
[327241944,1715915446781,-168.76043058,0.00012994,2]
[327241945,1715915446791,-491.27619131,0.00012994,2]
[327241946,1715915446802,-158.08339616,0.00012994,2]
[327241947,1715915446812,-210.6125324,0.00012994,2]
[327241948,1715915446822,-156.29970956,0.00012994,2]
[327241949,1715915446831,-177.57554311,0.00012994,2]
[327241950,1715915446842,-227.42728531,0.00012994,2]
[327241951,1715915446854,-167.37988312,0.00012994,2]
[327241952,1715915446863,-3094.09030108,0.00012994,2]